bitfinex/quotes_BTCUSD_20240101
["timestamp","ask_amount","ask_price","bid_price","bid_amount"]
[1704086203753,0.75936211,42385.0,42384.0,0.6]
[1704086203953,1.11583091,42385.0,42384.0,0.6]
[1704086204176,0.83058831,42385.0,42384.0,0.6]
[1704086204377,0.77411951,42385.0,42384.0,0.6]
[1704086204609,0.82061951,42385.0,42384.0,0.6]
[1704086205239,0.87708831,42385.0,42384.0,0.6]
[1704086206047,0.40522331,42385.0,42384.0,0.6]
[1704086206291,0.87708831,42385.0,42384.0,0.6]
[1704086207849,0.82061951,42385.0,42384.0,0.6]
[1704086208099,0.87708831,42385.0,42384.0,0.6]
[1704086208304,0.82061951,42385.0,42384.0,0.6]
[1704086208717,0.87712492,42385.0,42384.0,0.6]
[1704086208920,0.90532457,42385.0,42384.0,0.6]
[1704086210198,1.20532457,42385.0,42384.0,0.6]
[1704086210412,1.21887383,42385.0,42384.0,0.6]
[1704086210834,1.14522274,42385.0,42384.0,0.6]
[1704086211037,1.28691446,42385.0,42384.0,0.6]
[1704086211243,1.19023596,42385.0,42384.0,0.6]
[1704086211458,1.21887383,42385.0,42384.0,0.6]
[1704086212312,1.07718211,42385.0,42384.0,0.6]
[1704086212733,1.2185671,42385.0,42384.0,0.6]
[1704086213126,1.07718211,42385.0,42384.0,0.6]
[1704086213332,0.91856748,42385.0,42384.0,0.6]
[1704086213545,0.77718211,42385.0,42384.0,0.6]
[1704086213994,0.91856748,42385.0,42384.0,0.6]
[1704086214858,0.918599,42385.0,42384.0,0.6]
[1704086215284,1.013064,42385.0,42384.0,0.6]
[1704086216351,0.87164711,42385.0,42384.0,0.6]
[1704086216561,1.01309429,42385.0,42384.0,0.6]
[1704086217189,0.87164711,42385.0,42384.0,0.6]
[1704086217401,1.01309429,42385.0,42384.0,0.6]
[1704086217622,0.98481239,42385.0,42384.0,0.6]
[1704086217810,0.96783239,42385.0,42384.0,0.6]
[1704086217985,0.99611429,42385.0,42384.0,0.6]
[1704086220009,0.99615307,42385.0,42384.0,0.6]
[1704086220218,0.85466711,42385.0,42384.0,0.6]
[1704086221107,1.15466711,42385.0,42384.0,0.6]
[1704086221770,0.85466711,42385.0,42384.0,0.6]
[1704086221975,0.62045,42385.0,42383.0,3.51438337]
[1704086222182,0.148585,42385.0,42383.0,3.51438337]
[1704086222415,0.0531,42384.0,42383.0,3.51438337]
[1704086223055,0.19463452,42384.0,42383.0,3.51438337]
[1704086223263,0.0531,42384.0,42383.0,3.51438337]
[1704086223489,0.524976,42384.0,42383.0,3.51438337]
[1704086224245,0.81826285,42384.0,42383.0,3.51438337]
[1704086224547,0.81826285,42384.0,42383.0,3.51538337]
[1704086224548,0.61826285,42384.0,42383.0,3.51538337]
[1704086224889,0.524976,42384.0,42383.0,3.51538337]
[1704086225086,0.61826285,42384.0,42383.0,3.51538337]
[1704086225306,0.62026285,42384.0,42383.0,3.51538337]
[1704086225950,0.62026285,42384.0,42383.0,3.51438337]
[1704086226298,0.526976,42384.0,42383.0,3.51438337]
[1704086226507,0.61826285,42384.0,42383.0,3.51438337]
[1704086226721,0.525976,42384.0,42383.0,3.51438337]
[1704086226902,0.76485962,42384.0,42383.0,3.51438337]
[1704086227105,0.61847277,42384.0,42383.0,3.51438337]
[1704086227354,0.62247277,42384.0,42383.0,3.51438337]
[1704086227995,0.59415407,42384.0,42383.0,3.51438337]
[1704086228207,0.5658329,42384.0,42383.0,3.51438337]
[1704086230523,0.480876,42384.0,42383.0,3.51438337]
[1704086231160,0.58915407,42384.0,42383.0,3.51438337]
[1704086231561,0.59415407,42384.0,42383.0,3.51438337]
[1704086232037,0.59015407,42384.0,42383.0,3.51438337]
[1704086232259,0.68344092,42384.0,42383.0,3.51438337]
[1704086232500,0.68644092,42384.0,42383.0,3.51438337]
[1704086232954,0.68144092,42384.0,42383.0,3.51438337]
[1704086233423,0.68544092,42384.0,42383.0,3.51438337]
[1704086234116,0.57216285,42384.0,42383.0,3.51438337]
[1704086234788,0.65709885,42384.0,42383.0,3.51438337]
[1704086234978,0.68544092,42384.0,42383.0,3.51438337]
[1704086235193,0.57216285,42384.0,42383.0,3.51438337]
[1704086235603,0.68544092,42384.0,42383.0,3.51438337]
[1704086236217,0.71375962,42384.0,42383.0,3.51438337]
[1704086237078,0.478876,42384.0,42383.0,3.51438337]
[1704086238156,0.62044803,42384.0,42383.0,3.51438337]
[1704086238366,0.478876,42384.0,42383.0,3.51438337]
[1704086239014,0.62044995,42384.0,42383.0,3.51438337]
[1704086242878,0.14857395,42384.0,42383.0,3.51438337]
[1704086243087,0.62044995,42384.0,42383.0,3.51438337]
[1704086246060,0.7137368,42384.0,42383.0,3.51438337]
[1704086246319,0.2418608,42384.0,42383.0,3.51438337]
[1704086246522,0.62044995,42384.0,42383.0,3.51438337]
[1704086247372,0.478876,42384.0,42383.0,3.51438337]
[1704086247581,0.62047792,42384.0,42383.0,3.51438337]
[1704086247790,0.478876,42384.0,42383.0,3.51438337]
[1704086249764,0.57216285,42384.0,42383.0,3.51438337]
[1704086252815,0.478876,42384.0,42383.0,3.51438337]
[1704086253718,0.57216285,42384.0,42383.0,3.51438337]
[1704086254412,0.007,42384.0,42383.0,4.33231748]
[1704086254830,0.007,42384.0,42383.0,4.36947748]
[1704086255034,0.007,42384.0,42383.0,4.37947748]
[1704086255244,0.55672219,42395.0,42385.0,0.01]
[1704086255245,0.52840179,42395.0,42385.0,0.01]
[1704086255458,0.52840179,42395.0,42388.0,0.00283]
[1704086255459,0.471761,42395.0,42388.0,0.00283]
[1704086255673,0.05664079,42398.0,42389.0,0.23321711]
[1704086256549,0.05664079,42399.0,42389.0,0.23321711]
[1704086256997,0.478723,42398.0,42389.0,0.23321711]
[1704086257676,0.479723,42398.0,42389.0,0.23321711]
[1704086258328,0.472723,42398.0,42389.0,0.23321711]
[1704086259463,0.474723,42398.0,42389.0,0.23321711]
[1704086260348,0.474728,42398.0,42389.0,0.23321711]
[1704086262596,0.471732,42397.0,42389.0,0.23321711]
[1704086264992,0.472732,42397.0,42389.0,0.23321711]
[1704086270168,0.2199,42396.0,42389.0,0.23321711]
[1704086272165,0.471706,42400.0,42389.0,0.28031711]
[1704086272390,0.31318685,42400.0,42391.0,0.471798]
[1704086272616,0.2199,42400.0,42392.0,0.23321711]
[1704086273654,0.2229,42400.0,42392.0,0.23321711]
[1704086274324,0.67505601,42399.0,42392.0,0.23321711]
[1704086274559,0.62849601,42399.0,42392.0,0.23321711]
[1704086275005,0.09328685,42398.0,42392.0,0.23321711]
[1704086275482,0.2022,42397.0,42392.0,0.23321711]
[1704086275698,0.09328685,42396.0,42392.0,0.23321711]
[1704086276356,0.09328685,42396.0,42392.0,0.23621711]
[1704086276566,0.09328685,42396.0,42392.0,0.23321711]
[1704086277017,0.09328685,42396.0,42392.0,0.23921711]
[1704086277164,0.09328685,42396.0,42392.0,0.24121711]
[1704086277384,0.2022,42397.0,42392.0,0.24121711]
[1704086277585,0.2022,42397.0,42392.0,0.23921711]
[1704086277796,0.29548685,42397.0,42392.0,0.23921711]
[1704086277971,0.29548685,42397.0,42392.0,0.24421711]
[1704086278396,0.29548685,42397.0,42392.0,0.23921711]
[1704086278614,0.29548685,42397.0,42392.0,0.24221711]
[1704086278823,0.29548685,42397.0,42392.0,0.23621711]
[1704086279029,0.29548685,42397.0,42392.0,0.24021711]
[1704086279620,0.2022,42397.0,42392.0,0.24021711]
[1704086280892,0.2022,42397.0,42392.0,0.23521711]
[1704086281741,0.471743,42396.0,42392.0,0.23521711]
[1704086282834,0.471743,42396.0,42392.0,0.23121711]
[1704086283042,0.471743,42396.0,42392.0,0.22821711]
[1704086283259,0.2022,42397.0,42392.0,0.23921711]
[1704086283482,0.471747,42396.0,42392.0,0.23921711]
[1704086283901,0.56503385,42396.0,42392.0,0.23921711]
[1704086284115,0.09328685,42395.0,42392.0,0.23421711]
[1704086284576,0.09328685,42395.0,42392.0,0.23721711]
[1704086285016,0.09328685,42395.0,42392.0,0.23421711]
[1704086285661,0.56504185,42395.0,42392.0,0.22821711]
[1704086286092,0.56504185,42395.0,42392.0,0.23521711]
[1704086286299,0.471755,42395.0,42392.0,0.24121711]
[1704086291324,0.2022,42397.0,42392.0,0.24121711]
[1704086291325,0.471765,42394.0,42392.0,0.24121711]
[1704086292380,0.471765,42394.0,42392.0,0.23421711]
[1704086292583,0.471765,42394.0,42392.0,0.23721711]
[1704086292999,0.472765,42394.0,42392.0,0.24521711]
[1704086295714,0.13704102,42393.0,42392.0,0.017]
[1704086295926,0.60881702,42393.0,42392.0,0.017]
[1704086296586,0.60881702,42393.0,42392.0,0.009]
[1704086296805,0.60881702,42393.0,42392.0,0.006]
[1704086297268,0.60881702,42393.0,42392.0,0.009]
[1704086297760,0.60881702,42393.0,42392.0,0.003]
[1704086298232,0.471776,42393.0,42392.0,0.003]
[1704086298468,0.471776,42393.0,42387.0,0.01]
[1704086298694,0.56506285,42393.0,42388.0,0.23321711]
[1704086298934,0.471776,42393.0,42388.0,0.23321711]
[1704086299401,0.52841679,42393.0,42388.0,0.23321711]
[1704086300341,0.52841679,42393.0,42388.0,0.23421711]
[1704086302125,0.05664079,42393.0,42388.0,0.23421711]
[1704086302325,0.52841679,42393.0,42388.0,0.23421711]
[1704086303444,0.05664079,42392.0,42388.0,0.23421711]
[1704086303587,0.52841679,42393.0,42388.0,0.23421711]
[1704086305697,0.471776,42393.0,42388.0,0.23421711]
[1704086305959,0.27644079,42394.0,42388.0,0.23421711]
[1704086306388,0.2198,42394.0,42388.0,0.23421711]
[1704086307032,0.2208,42394.0,42388.0,0.23421711]
[1704086307714,0.2208,42394.0,42388.0,0.23321711]
[1704086309888,0.001,42394.0,42389.0,0.04716]
[1704086310100,0.001,42394.0,42390.0,0.23321711]
[1704086311584,0.001,42394.0,42390.0,0.70602211]
[1704086311826,0.0566115,42395.0,42390.0,0.70602211]
[1704086312236,0.001,42394.0,42390.0,0.70602211]
[1704086312655,0.0566115,42395.0,42390.0,0.70602211]
[1704086313085,0.0576115,42395.0,42390.0,0.70602211]
[1704086313950,0.0576115,42395.0,42390.0,0.70502211]
[1704086314569,0.001,42395.0,42390.0,0.70502211]
[1704086315425,0.0566115,42396.0,42390.0,0.70502211]
[1704086315631,0.001,42395.0,42390.0,0.70502211]
[1704086315839,0.001,42395.0,42390.0,0.70802211]
[1704086316136,0.0566115,42396.0,42390.0,0.70802211]
[1704086316342,0.0566115,42396.0,42390.0,0.71002211]
[1704086316807,0.29921725,42398.0,42390.0,0.23821711]
[1704086316808,0.0566115,42395.0,42390.0,0.23821711]
[1704086317021,0.0566115,42395.0,42390.0,0.70802211]
[1704086317447,0.0566115,42395.0,42390.0,0.70502211]
[1704086317891,0.0566115,42395.0,42390.0,0.70802211]
[1704086318741,0.0566115,42395.0,42390.0,0.71002211]
[1704086321601,0.2726115,42395.0,42390.0,0.71002211]
[1704086325052,0.42711996,42395.0,42390.0,0.71002211]
[1704086325253,0.0566115,42394.0,42390.0,0.23821711]
[1704086325663,0.0566115,42392.0,42390.0,0.005]
[1704086325861,0.0566115,42391.0,42390.0,0.005]
[1704086326067,0.08491725,42391.0,42390.0,0.003]
[1704086326268,0.05662987,42391.0,42390.0,0.003]
[1704086326614,0.05662987,42391.0,42390.0,0.006]
[1704086326968,0.05662998,42391.0,42386.0,0.3]
[1704086327143,0.05662998,42391.0,42387.0,0.24321711]
[1704086327349,0.05662998,42391.0,42390.0,0.003]
[1704086327554,0.73611798,42392.0,42387.0,0.24321711]
[1704086327962,0.73611798,42392.0,42390.0,0.001]
[1704086328164,0.001,42391.0,42390.0,0.001]
[1704086328594,0.001,42391.0,42387.0,0.24321711]
[1704086328847,0.26432998,42392.0,42387.0,0.24321711]
[1704086329054,0.26532998,42392.0,42387.0,0.24321711]
[1704086329426,0.26432998,42392.0,42387.0,0.24321711]
[1704086330493,0.26432998,42392.0,42390.0,0.001]
[1704086330702,0.26432998,42392.0,42390.0,0.23321711]
[1704086331642,0.26532998,42392.0,42390.0,0.23321711]
[1704086332057,0.26432998,42392.0,42390.0,0.23321711]
[1704086332200,0.26532998,42392.0,42390.0,0.23321711]
[1704086333232,0.001,42392.0,42391.0,0.71501511]
[1704086333412,0.001,42392.0,42391.0,1.01501511]
[1704086333613,0.001,42392.0,42391.0,1.16217511]
[1704086334046,0.05662998,42401.0,42393.0,0.01]
[1704086334246,0.05662998,42402.0,42395.0,0.471746]
[1704086334452,0.206,42403.0,42396.0,0.23321711]
[1704086334709,0.26262998,42403.0,42396.0,0.23321711]
[1704086334881,0.05662998,42402.0,42396.0,0.23321711]
[1704086335270,0.001,42401.0,42396.0,0.23321711]
[1704086335707,0.05662998,42402.0,42396.0,0.23321711]
[1704086335915,0.39203865,42403.0,42396.0,0.23321711]
[1704086338177,0.33540867,42403.0,42396.0,0.23321711]
[1704086338805,0.207,42403.0,42396.0,0.23321711]
[1704086341091,0.26362998,42403.0,42396.0,0.23321711]
[1704086341567,0.26362998,42403.0,42397.0,0.471729]
[1704086341568,0.207,42403.0,42397.0,0.471729]
[1704086341780,0.207,42403.0,42398.0,0.23321711]
[1704086343197,0.206,42403.0,42398.0,0.23321711]
[1704086343407,0.207,42403.0,42398.0,0.23321711]
[1704086344100,0.206,42403.0,42398.0,0.23621711]
[1704086344311,0.206,42403.0,42398.0,0.23821711]
[1704086347524,0.471709,42399.0,42398.0,0.005]
[1704086348684,0.471709,42399.0,42398.0,0.002]
[1704086349133,0.472709,42399.0,42398.0,0.002]
[1704086349343,0.472709,42399.0,42393.0,0.01]
[1704086349344,0.471709,42399.0,42393.0,0.01]
[1704086349565,0.002,42399.0,42394.0,0.23321711]
[1704086349991,0.2183,42400.0,42394.0,0.23321711]
[1704086350648,0.001,42399.0,42394.0,0.23321711]
[1704086351585,0.2183,42400.0,42394.0,0.23321711]
[1704086351772,0.2111,42403.0,42396.0,0.471741]
[1704086351995,0.2111,42403.0,42397.0,0.23321711]
[1704086353084,0.2141,42403.0,42397.0,0.23321711]
[1704086353296,0.2111,42403.0,42397.0,0.23321711]
[1704086353521,0.2111,42403.0,42397.0,0.23421711]
[1704086354393,0.04614,42402.0,42397.0,0.23421711]
[1704086354607,0.36322051,42403.0,42397.0,0.23421711]
[1704086355037,0.2111,42403.0,42397.0,0.23421711]
[1704086355450,0.2111,42403.0,42397.0,0.23321711]
[1704086355665,0.2111,42403.0,42397.0,0.23621711]
[1704086355873,0.2111,42403.0,42397.0,0.23321711]
[1704086356090,0.2111,42403.0,42397.0,0.23521711]
[1704086356309,0.2111,42403.0,42397.0,0.23621711]
[1704086356513,0.2111,42403.0,42397.0,0.23421711]
[1704086357829,0.35952118,42403.0,42397.0,0.23421711]
[1704086358058,0.04938,42402.0,42397.0,0.23421711]
[1704086358293,0.471694,42401.0,42397.0,0.23421711]
[1704086359140,0.471694,42401.0,42397.0,0.23521711]
[1704086359397,0.471694,42401.0,42397.0,0.23821711]
[1704086359644,0.471694,42401.0,42397.0,0.23321711]
[1704086359850,0.471694,42401.0,42397.0,0.23621711]
[1704086360489,0.471694,42401.0,42397.0,0.24021711]
[1704086369101,0.471694,42401.0,42397.0,0.23321711]
[1704086369673,0.471694,42401.0,42397.0,0.23421711]
[1704086370705,0.471694,42401.0,42397.0,0.23321711]
[1704086370841,0.471694,42401.0,42397.0,0.23421711]
[1704086374163,0.52822374,42401.0,42397.0,0.23421711]
[1704086374800,0.471694,42401.0,42397.0,0.23421711]
[1704086375208,0.52822374,42401.0,42397.0,0.23421711]
[1704086377331,0.05652974,42400.0,42397.0,0.23421711]
[1704086377751,0.41804834,42400.0,42397.0,0.23421711]
[1704086378180,0.05652974,42398.0,42397.0,0.23321711]
[1704086378613,0.05652974,42398.0,42397.0,0.005]
[1704086378614,0.08491725,42398.0,42397.0,0.005]
[1704086378834,0.61324875,42398.0,42397.0,0.005]
[1704086379040,0.54816,42398.0,42397.0,0.003]
[1704086379254,0.7179945,42398.0,42397.0,0.003]
[1704086379461,0.54816,42398.0,42397.0,0.003]
[1704086379724,0.71797204,42398.0,42397.0,0.003]
[1704086379946,0.54816,42398.0,42397.0,0.003]
[1704086380155,0.85444534,42398.0,42384.0,1.19765375]
[1704086380366,0.71790567,42398.0,42397.0,0.005]
[1704086380575,0.64146567,42398.0,42397.0,0.006]
[1704086380785,0.89578927,42398.0,42397.0,0.005]
[1704086381001,0.90078927,42398.0,42385.0,0.23321711]
[1704086381214,0.05658159,42391.0,42385.0,0.23321711]
[1704086381868,0.05658159,42395.0,42388.0,0.01]
[1704086382087,0.05658159,42396.0,42389.0,0.471809]
[1704086382386,0.05658159,42397.0,42389.0,0.471809]
[1704086382605,0.6606246,42398.0,42388.0,0.01]
[1704086382606,0.24548519,42398.0,42388.0,0.01]
[1704086382818,0.71720619,42398.0,42389.0,0.471809]
[1704086383045,0.71720619,42398.0,42388.0,0.01]
[1704086383046,0.05658159,42397.0,42388.0,0.01]
[1704086383283,0.05658159,42397.0,42388.0,0.31]
[1704086384355,0.05658159,42397.0,42388.0,0.311]
[1704086384565,0.05658159,42397.0,42390.0,0.471802]
[1704086384771,0.70420619,42398.0,42390.0,0.471802]
[1704086386051,0.08487239,42400.0,42391.0,0.471797]
[1704086386052,0.05658159,42400.0,42391.0,0.471797]
[1704086386270,0.05658159,42400.0,42388.0,0.5605]
[1704086386271,0.05658159,42400.0,42389.0,0.0498]
[1704086386499,0.05658159,42400.0,42391.0,0.471789]
[1704086386721,0.001,42397.0,42391.0,0.471789]
[1704086386929,0.001,42397.0,42392.0,0.23321711]
[1704086387146,0.05658159,42400.0,42392.0,0.23321711]
[1704086387397,0.06058159,42400.0,42392.0,0.23321711]
[1704086387619,0.06158159,42400.0,42392.0,0.23321711]
[1704086388030,0.05658159,42400.0,42392.0,0.23321711]
[1704086388246,0.21389751,42399.0,42392.0,0.23321711]
[1704086388896,0.05658159,42398.0,42392.0,0.23321711]
[1704086389110,0.21389751,42399.0,42392.0,0.23321711]
[1704086390234,0.21389751,42399.0,42392.0,0.23421711]
[1704086390451,0.05658159,42399.0,42392.0,0.23421711]
[1704086390660,0.05658159,42400.0,42392.0,0.23421711]
[1704086390873,0.05658159,42399.0,42392.0,0.23421711]
[1704086391329,0.05658159,42400.0,42392.0,0.23421711]
[1704086391511,0.05658159,42400.0,42392.0,0.23321711]
[1704086391776,0.05658159,42399.0,42392.0,0.23321711]
[1704086393286,0.05658159,42399.0,42392.0,0.23421711]
[1704086396416,0.1987,42398.0,42392.0,0.23421711]
[1704086397724,0.1987,42398.0,42392.0,0.23521711]
[1704086397912,0.1987,42398.0,42392.0,0.23821711]
[1704086398108,0.33115647,42398.0,42392.0,0.23821711]
[1704086399620,0.471748,42396.0,42392.0,0.23321711]
[1704086401024,0.471748,42396.0,42392.0,0.23421711]
[1704086402635,0.52832959,42396.0,42392.0,0.23421711]
[1704086403089,0.471748,42396.0,42392.0,0.23421711]
[1704086404323,0.52832959,42396.0,42392.0,0.23421711]
[1704086404751,0.471748,42396.0,42392.0,0.23421711]
[1704086404956,0.15026269,42395.0,42392.0,0.001]
[1704086405171,0.471776,42393.0,42392.0,0.001]
[1704086405856,0.471776,42393.0,42388.0,0.82378175]
[1704086406062,0.471776,42393.0,42389.0,0.23321711]
[1704086406473,0.471776,42393.0,42392.0,0.003]
[1704086407136,0.471776,42393.0,42389.0,0.23321711]
[1704086407332,0.56606285,42393.0,42389.0,0.23321711]
[1704086407533,0.472776,42393.0,42389.0,0.23321711]
[1704086409096,0.471776,42393.0,42389.0,0.23321711]
[1704086409585,0.472776,42393.0,42389.0,0.23321711]
[1704086410041,0.2161,42394.0,42389.0,0.23321711]
[1704086410439,0.001,42393.0,42389.0,0.23321711]
[1704086412094,0.2161,42394.0,42389.0,0.23321711]
[1704086412313,0.2161,42394.0,42390.0,0.471801]
[1704086412512,0.2161,42394.0,42391.0,0.23321711]
[1704086412720,0.2181,42394.0,42391.0,0.23321711]
[1704086412991,0.2191,42394.0,42391.0,0.23321711]
[1704086413359,0.2181,42394.0,42391.0,0.23321711]
[1704086413801,0.2161,42394.0,42391.0,0.23621711]
[1704086415676,0.2161,42394.0,42391.0,0.23821711]
[1704086422256,0.37784056,42394.0,42391.0,0.23821711]
[1704086422703,0.43442215,42394.0,42391.0,0.23821711]
[1704086425450,0.37784056,42394.0,42391.0,0.23821711]
[1704086425658,0.43442215,42394.0,42391.0,0.23821711]
[1704086426311,0.27268159,42394.0,42391.0,0.23821711]
[1704086429113,0.05658159,42393.0,42391.0,0.23821711]
[1704086429316,0.27268159,42394.0,42391.0,0.23821711]
[1704086429925,0.27268159,42394.0,42391.0,0.23621711]
[1704086430129,0.27268159,42394.0,42391.0,0.23321711]
[1704086430369,0.05658159,42393.0,42391.0,0.23721711]
[1704086431177,0.05658159,42393.0,42391.0,0.24021711]
[1704086431426,0.27268159,42394.0,42391.0,0.24021711]
[1704086431573,0.27268159,42394.0,42391.0,0.23621711]
[1704086431773,0.0053993,42393.0,42391.0,0.23621711]
[1704086432094,0.0053993,42393.0,42391.0,0.23921711]
[1704086432294,0.0053993,42393.0,42391.0,0.23621711]
[1704086432666,0.0053993,42393.0,42391.0,0.23521711]
[1704086433097,0.0053993,42393.0,42391.0,0.23721711]
[1704086434506,0.0053993,42393.0,42391.0,0.24021711]
[1704086435673,0.06198089,42393.0,42391.0,0.24021711]
[1704086436304,0.0053993,42393.0,42391.0,0.24021711]
[1704086436939,0.06198089,42393.0,42391.0,0.24021711]
[1704086437171,0.0053993,42393.0,42391.0,0.24021711]
[1704086445616,0.06198089,42393.0,42391.0,0.24021711]
[1704086445822,0.0053993,42393.0,42391.0,0.24021711]
[1704086445998,0.06198089,42393.0,42391.0,0.24021711]
[1704086446431,0.0053993,42393.0,42391.0,0.24021711]
[1704086448155,0.06198089,42393.0,42391.0,0.24021711]
[1704086448359,0.0053993,42393.0,42391.0,0.24021711]
[1704086448741,0.06198089,42393.0,42391.0,0.24021711]
[1704086451104,0.2301895,42393.0,42391.0,0.24021711]
[1704086452399,0.2584803,42393.0,42391.0,0.24021711]
[1704086452793,0.08487239,42392.0,42391.0,0.24021711]
[1704086452995,0.09017767,42392.0,42391.0,0.24021711]
[1704086453393,0.09017767,42392.0,42391.0,0.23721711]
[1704086453609,0.09017767,42392.0,42391.0,0.004]
[1704086453814,0.06656528,42392.0,42391.0,0.005]
[1704086454023,0.15985213,42392.0,42391.0,0.011]
[1704086454224,0.63163913,42392.0,42391.0,0.011]
[1704086454718,0.63163913,42392.0,42391.0,0.006]
[1704086455378,0.63163913,42392.0,42383.0,4.03816512]
[1704086455587,0.05662331,42387.0,42384.0,0.23321711]
[1704086455713,0.09328685,42386.0,42384.0,0.23321711]
[1704086455931,0.27532331,42388.0,42384.0,0.23321711]
[1704086456134,0.00530234,42385.0,42384.0,0.23321711]
[1704086456368,0.27532331,42388.0,42384.0,0.23321711]
[1704086456578,0.00530553,42385.0,42384.0,0.23321711]
[1704086456776,0.27532331,42388.0,42384.0,0.23821711]
[1704086456983,0.00530688,42385.0,42384.0,0.23821711]
[1704086457202,0.27532331,42388.0,42384.0,0.24021711]
[1704086457719,0.00530369,42387.0,42384.0,0.24621711]
[1704086458313,0.00530369,42387.0,42384.0,0.23921711]
[1704086458802,0.00530369,42387.0,42384.0,0.24221711]
[1704086458930,0.00530369,42387.0,42384.0,0.23321711]
[1704086459135,0.00530369,42387.0,42384.0,0.23521711]
[1704086459342,0.00530369,42387.0,42384.0,0.23921711]
[1704086459750,0.00530369,42387.0,42384.0,0.23721711]
[1704086459965,0.00530369,42387.0,42384.0,0.24021711]
[1704086461339,0.13788996,42387.0,42384.0,0.24021711]
[1704086461536,0.40860958,42387.0,42384.0,0.24021711]
[1704086461740,0.40860958,42387.0,42384.0,0.007]
[1704086461994,0.00528656,42386.0,42384.0,0.007]
[1704086462571,0.00528656,42386.0,42383.0,3.51438337]
[1704086462769,0.00528656,42386.0,42383.0,3.74760048]
[1704086464836,0.00528656,42386.0,42384.0,0.001]
[1704086465079,0.00528656,42386.0,42383.0,3.74760048]
[1704086465292,0.00528656,42386.0,42383.0,3.74860048]
[1704086465717,0.2194,42387.0,42383.0,3.74860048]
[1704086465927,0.00524263,42385.0,42383.0,3.74860048]
[1704086466268,0.2194,42387.0,42383.0,3.74860048]
[1704086466476,0.00524263,42384.0,42383.0,3.74760048]
[1704086466681,0.2194,42387.0,42383.0,3.74760048]
[1704086467102,0.00524263,42386.0,42383.0,3.74760048]
[1704086468175,0.00524263,42386.0,42383.0,3.74960048]
[1704086468580,0.00524263,42386.0,42383.0,3.74760048]
[1704086469014,0.00524263,42386.0,42383.0,3.74860048]
[1704086470221,0.21724263,42386.0,42383.0,3.74860048]
[1704086473056,0.31052948,42386.0,42383.0,3.74860048]
[1704086473279,0.14044685,42385.0,42383.0,3.51538337]
[1704086473691,0.00522697,42384.0,42383.0,3.51538337]
[1704086473944,0.09851382,42384.0,42383.0,3.51538337]
[1704086474153,0.00522697,42384.0,42383.0,3.51438337]
[1704086474490,0.001,42385.0,42383.0,3.51438337]
[1704086474663,0.00516917,42384.0,42383.0,3.51438337]
[1704086475081,0.00516917,42384.0,42383.0,3.51538337]
[1704086475557,0.25904,42386.0,42383.0,3.51538337]
[1704086475785,0.25904,42386.0,42383.0,3.51438337]
[1704086476244,0.00516598,42385.0,42383.0,3.51438337]
[1704086476931,0.05262598,42385.0,42383.0,3.51438337]
[1704086477376,0.00516598,42385.0,42383.0,3.51438337]
[1704086477608,0.05070598,42385.0,42383.0,3.51438337]
[1704086477876,0.14399283,42385.0,42383.0,3.51438337]
[1704086478378,0.22494254,42384.0,42383.0,3.51438337]
[1704086478510,0.79010539,42384.0,42383.0,3.51438337]
[1704086478733,0.8518214,42384.0,42383.0,3.51438337]
[1704086479260,0.64707124,42384.0,42383.0,3.51438337]
[1704086479774,0.4769687,42384.0,42383.0,3.51438337]
[1704086480181,0.5231687,42384.0,42383.0,3.51438337]
[1704086480396,0.57025555,42384.0,42383.0,3.51438337]
[1704086480607,0.57025555,42384.0,42383.0,3.51538337]
[1704086481435,0.57225555,42384.0,42383.0,3.51438337]
[1704086481693,0.61885555,42384.0,42383.0,3.51438337]
[1704086481901,0.61585555,42384.0,42383.0,3.51438337]
[1704086482327,0.61685555,42384.0,42383.0,3.51438337]
[1704086482975,0.57125555,42384.0,42383.0,3.51438337]
[1704086483589,0.57325555,42384.0,42383.0,3.51438337]
[1704086487248,0.61879555,42384.0,42383.0,3.51438337]
[1704086487448,0.57325555,42384.0,42383.0,3.51438337]
[1704086487805,0.4799687,42384.0,42383.0,3.51438337]
[1704086488043,0.57325555,42384.0,42383.0,3.51438337]
[1704086488434,0.61867555,42384.0,42383.0,3.51438337]
[1704086488636,0.57325555,42384.0,42383.0,3.51438337]
[1704086491706,0.61963555,42384.0,42383.0,3.51438337]
[1704086492316,0.57325555,42384.0,42383.0,3.51438337]
[1704086492901,0.61969555,42384.0,42383.0,3.51438337]
[1704086493123,0.5264087,42384.0,42383.0,3.51438337]
[1704086493536,0.4799687,42384.0,42383.0,3.51438337]
[1704086495340,0.58237201,42384.0,42383.0,3.51438337]
[1704086495944,0.5257487,42384.0,42383.0,3.51438337]
[1704086496527,0.58237201,42384.0,42383.0,3.51438337]
[1704086496687,0.53659201,42384.0,42383.0,3.51438337]
[1704086496894,0.58189201,42384.0,42383.0,3.51438337]
[1704086497511,0.61020367,42384.0,42383.0,3.51438337]
[1704086497755,0.5252687,42384.0,42383.0,3.51438337]
[1704086497964,0.61020367,42384.0,42383.0,3.51438337]
[1704086499321,0.4799687,42384.0,42383.0,3.51438337]
[1704086499532,0.56490367,42384.0,42383.0,3.51438337]
[1704086499737,0.53655059,42384.0,42383.0,3.51438337]
[1704086499941,0.4799687,42384.0,42383.0,3.51438337]
[1704086500357,0.53655059,42384.0,42383.0,3.51438337]
[1704086502662,0.06467459,42384.0,42383.0,3.51438337]
[1704086503079,0.4799687,42384.0,42383.0,3.51438337]
[1704086503281,0.56490367,42384.0,42383.0,3.51438337]
[1704086506365,0.65819052,42384.0,42383.0,3.51438337]
[1704086507176,0.18628065,42384.0,42383.0,3.51438337]
[1704086507385,0.5648698,42384.0,42383.0,3.51438337]
[1704086507810,0.65815665,42384.0,42383.0,3.51438337]
[1704086508179,0.68650218,42384.0,42383.0,3.51438337]
[1704086508588,0.73198218,42384.0,42383.0,3.51438337]
[1704086508906,0.68650218,42384.0,42383.0,3.51438337]
[1704086509117,0.57325555,42384.0,42383.0,3.51438337]
[1704086509719,0.65816751,42384.0,42383.0,3.51438337]
[1704086509956,0.6298653,42384.0,42383.0,3.51438337]
[1704086510354,0.65816751,42384.0,42383.0,3.51438337]
[1704086510670,0.56488066,42384.0,42383.0,3.51438337]
[1704086511807,0.50763677,42384.0,42383.0,3.51438337]
[1704086512050,0.03576077,42384.0,42383.0,3.51438337]
[1704086512860,0.03376077,42384.0,42383.0,3.51438337]
[1704086513064,0.03276077,42384.0,42383.0,3.51438337]
[1704086513287,0.0903829,42384.0,42383.0,3.51438337]
[1704086513491,0.03376077,42384.0,42383.0,3.51438337]